Cogmind - Beta 16.1 @@@ ROGUE MODE // 2026.04.20 @ 13:38:46 Player: certified.possum Result: Self-destructed Performance ------------- Evolutions (1) 500 Regions Visited (3) 600 Robots Destroyed (36) 180 Value Destroyed (892) 892 Prototype IDs (0) 0 Alien Tech Used (0) 0 Bonus (0) 0 TOTAL SCORE: 2172 Bonus ------- None Cogmind --------- Core Integrity 170/400 Matter 129/300 Energy 250/250 System Corruption 0% Temperature Cool (0) Movement Walking (120) Location -9/Materials Parts ------- > --- POWER (1) -------- Ion Engine (fused) > --- PROPULSION (4) --- Aluminum Leg > --- UTILITY (2) ------ Small Storage Unit Signal Interpreter > --- WEAPON (2) ------- (None) > --- INVENTORY (8) ---- Ion Engine Terrain Scanner Reaction Control System Peak State ------------ > --- POWER ------------ Ion Engine > --- PROPULSION ------- Aluminum Leg Aluminum Leg > --- UTILITY ---------- Small Storage Unit Reaction Control System > --- WEAPON ----------- High-powered Shotgun Rocket Launcher > --- INVENTORY -------- Aluminum Leg Aluminum Leg Aluminum Leg Aluminum Leg Medium Laser Small Laser Rocket Launcher Rocket Launcher [Rating: 13] Favorites ----------- Power Ion Engine Engine Ion Engine Propulsion Aluminum Leg Leg Aluminum Leg Utility Small Storage Unit Device Terrain Scanner Storage Small Storage Unit Processor Signal Interpreter Weapon Rocket Launcher Energy Gun Medium Laser Ballistic Gun High-powered Shotgun Ballistic Cannon Light Cannon Launcher Rocket Launcher Build | -11 -10 -10 -9 ------- Run | Yrd Mat Min Mat Slots Evolved 2 | . . . 2 Power . | . . . . Propulsion 2 | . . . 2 Utility . | . . . . Weapon . | . . . . Parts Attached 25 | 6 10 4 5 Power 2 | 1 1 . . Engine 2 | 1 1 . . Core . | . . . . Reactor . | . . . . Propulsion 8 | 2 1 1 4 Treads . | . . . . Leg 8 | 2 1 1 4 Wheel . | . . . . Hover . | . . . . Flight . | . . . . Utility 5 | 1 2 2 . Device 2 | . 1 1 . Storage 2 | 1 1 . . Processor 1 | . . 1 . Hackware . | . . . . Protection . | . . . . Artifact . | . . . . Weapon 10 | 2 6 1 1 Energy Gun 4 | 2 2 . . Energy Cannon . | . . . . Ballistic Gun 1 | . . 1 . Ballistic Cannon 1 | . 1 . . Launcher 4 | . 3 . 1 Special Weapon . | . . . . Impact Weapon . | . . . . Slashing Weapon . | . . . . Piercing Weapon . | . . . . Special Melee Weapon . | . . . . Unidentified Prototypes . | . . . . Parts Lost 12 | . 3 1 8 Power 1 | . 1 . . Propulsion 7 | . 1 1 5 Utility . | . . . . Weapon 4 | . 1 . 3 Highest Loss Streak 8 | . 1 1 8 To Critical Strikes . | . . . . Average Backups 6 | 2 5 6 6 Power . | . . . . Propulsion 2 | . 1 3 1 Utility . | . . . 2 Weapon 3 | . 3 3 1 Tool/Special . | . . . . Unused Backups 4 | . 2 . 2 Power 2 | . 1 . 1 Propulsion . | . . . . Utility 1 | . . . 1 Weapon 1 | . 1 . . Tool/Special . | . . . . Average Slot Usage (%) 94 | . 95 94 95 Engine 13 | . 13 14 11 Leg 27 | . 27 22 41 Device 5 | . 10 3 . Storage 17 | . 14 22 11 Processor 2 | . . 2 11 Energy Gun 7 | . 11 7 . Ballistic Gun 3 | . . 5 9 Ballistic Cannon 3 | . 7 . . Launcher 11 | . 8 15 11 Peak Build Rating 13 | 6 9 13 13 Average Rating 8 | 4 7 9 12 On Entrance 6 | . 6 9 11 Avg Prop Armor Cover (%) . | . . . . Naked Turns . | . . . . Heaviest Build 20 | 12 20 20 18 Greatest Support 40 | 20 20 20 40 Greatest Overweight (x) 1 | . 1 1 1 Average Overweight (x) . | . . . . Largest Inventory Capacity 8 | 8 8 8 8 Average Capacity 7 | 7 8 8 8 Most Carried 8 | 4 8 8 7 Average Carried 6 | 2 5 6 6 Final Capacity 8 | 8 8 8 8 Final Carried 8 | 2 6 8 3 Class Distribution -------------------- 100% | Mutant Dominant Class ---------------- Mutant | -10/Materials Mutant | -10/Mines Mutant | -9/Materials Resources | -11 -10 -10 -9 ----------- Run | Yrd Mat Min Mat Matter Collected 770 | 204 263 257 46 Remotely . | . . . . Salvage Created 736 | 14 310 136 276 Parts 57 | 4 26 12 15 Haulers Intercepted 1 | . . . 1 Recyclers Shooed 1 | . 1 . . Parts Field Recycled . | . . . . Retrieved Matter . | . . . . Parts Self-Destructed . | . . . . Prevented . | . . . . Parts Restored . | . . . . Kills | -11 -10 -10 -9 ------- Run | Yrd Mat Min Mat Combat Hostiles Destroyed 26 | . 14 5 7 Melee 1 | . . . 1 Guns 10 | . 5 3 2 Cannons 4 | . 4 . . AOE 11 | . 5 2 4 Classes Destroyed 10 | 1 4 . 5 Worker 2 | . 1 . 1 Builder 1 | . . . 1 Tunneler 2 | 1 . 1 . Hauler 1 | . . . 1 Recycler 1 | . . . 1 Watcher 3 | . 3 . . Swarmer 8 | . 5 3 . Grunt 16 | . 9 2 5 Duelist 1 | . . . 1 Sentry 1 | . . . 1 Best Kill Streak 7 | 1 3 3 7 Combat Bots Only 4 | . 2 3 4 Max Kills in Single Turn 3 | 1 2 2 3 Gunslinging . | . . . . Exploded 2 | . 2 2 1 Melee 1 | . . . 1 Uniques/NPCs Destroyed . | . . . . Combat | -11 -10 -10 -9 -------- Run | Yrd Mat Min Mat Hostile Shots Fired 170 | . 73 15 82 Missed 50 | . 18 4 28 Hits 120 | . 55 11 54 Melee 7 | . . . 7 Projectile 113 | . 55 11 47 Critical Strikes 7 | . 1 . 6 Damage Taken 1662 | . 618 112 932 Core 328 | . 78 20 230 Absorbed by Shields . | . . . . Core Remaining (%) 80 | 100 . 60 . Volleys Fired 67 | 1 38 9 19 Largest 2 | 2 2 2 2 Hottest 83 | 80 80 83 66 Shots Fired 115 | 2 74 11 28 Gun 54 | 2 29 10 13 Cannon 30 | . 30 . . Launcher 31 | . 15 1 15 Special . | . . . . Kinetic 44 | . 30 1 13 Thermal 40 | 2 29 9 . Explosive 31 | . 15 1 15 Electromagnetic . | . . . . Robot Hit Streak 5 | 1 4 3 5 Robot Miss Streak 10 | 1 10 2 2 Penetration Max . | . . . . Secondary Targets . | . . . . Shots Hit Robots 53 | 1 29 5 18 Core Hits 52 | 1 22 7 22 Critical Kills . | . . . . Critical Parts Destroyed . | . . . . Critical Strikes 4 | . 4 . . Burn 3 | . 3 . . Blast 1 | . 1 . . Melee Attacks . | . . . . Impact . | . . . . Slashing . | . . . . Piercing . | . . . . Sneak Attacks . | . . . . Combat Hostiles . | . . . . Follow-up Attacks . | . . . . Damage Inflicted 2355 | 20 1110 193 1032 Guns 502 | 20 200 50 232 Cannons 237 | . 237 . . Explosions 1542 | . 642 130 770 Melee . | . . . . Ramming 74 | . 31 13 30 Kinetic 469 | . 237 . 232 Thermal 270 | 20 200 50 . Explosive 1542 | . 642 130 770 Electromagnetic . | . . . . Impact . | . . . . Slashing . | . . . . Piercing . | . . . . Highest Corruption 5 | . 5 5 . Average Corruption 4 | . 4 5 . Corruption Purged . | . . . . Corruption Blocked . | . . . . Effects 29 | . 11 18 . Message Errors 9 | . 3 6 . Matter Fused 5 | . 1 4 . Heat Flow Errors 3 | . 1 2 . Energy Discharges 2 | . 2 . . Parts Fused 3 | . 2 1 . Data Loss (minor) 3 | . . 3 . Data Loss (major) 3 | . 2 1 . Misfires 1 | . . 1 . Overload Shots . | . . . . Overflow Damage 4 | . 2 . 2 Projectiles . | . . . . Explosions 4 | . 2 . 2 Melee . | . . . . Knockbacks 4 | . 4 . . Impact . | . . . . Kinetic 3 | . 3 . . Secondary 1 | . 1 . . Self-Inflicted Damage 57 | . 7 19 31 Shots 3 | . 1 1 1 Rammed . | . . . . Targets Rammed 14 | . 4 1 9 Kicked 14 | . 4 1 9 Crushed . | . . . . Highest Temperature 222 | 18 179 222 25 Average Temperature 52 | 12 52 67 11 Received Heat Transfer 489 | . 174 12 303 Siege Activations . | . . . . Martial Activations . | . . . . Shielding Activations . | . . . . Robots Disrupted . | . . . . Combat Hostiles . | . . . . Robots Corrupted . | . . . . Combat Hostiles . | . . . . Parts Fried . | . . . . Impact Corruptions . | . . . . Robots Melted . | . . . . Combat Hostiles . | . . . . Parts Melted 2 | . . 2 . Heat Transferred 1012 | 50 814 148 . Parts Sabotaged . | . . . . Parts Stolen . | . . . . Parts Stripped . | . . . . Power Chain Reactions . | . . . . Alert | -11 -10 -10 -9 ------- Run | Yrd Mat Min Mat Maximum Alert Level 1 | . 1 . . Low Security (%) 91 | 100 80 100 100 Level 1 8 | . 19 . . Level 2 . | . . . . Level 3 . | . . . . Level 4 . | . . . . Level 5 . | . . . . High Security . | . . . . Max Security . | . . . . Peak Influence 259 | 5 259 118 152 Initial 98 | . 3 98 . Average 55 | . 90 34 25 Influence Increases 1007 | 5 584 143 275 Destroy 0b10 Robot/C 520 | . 280 100 140 Destroy 0b10 Robot/NC 50 | 5 20 5 20 Destroy Leader 98 | . 56 20 22 Successful Hack 23 | . 14 5 4 Disable Machine 90 | . 90 . . Destroy Structure 211 | . 109 13 89 Lose Combat Pursuer 15 | . 15 . . Influence Decreases 915 | . 336 396 183 Entered New Map 157 | . 2 155 . Time Decay 638 | . 304 231 103 Lost Part 120 | . 30 10 80 Squads Dispatched 4 | . 2 1 1 Investigation 2 | . 1 1 . Extermination . | . . . . Reinforcement 2 | . 1 . 1 Assault . | . . . . Garrison . | . . . . Intercept . | . . . . Searches Triggered . | . . . . Construction Impeded . | . . . . Haulers Reinforced . | . . . . Active Scanning Responses . | . . . . Cargo Convoy Interrupts . | . . . . Stealth | -11 -10 -10 -9 --------- Run | Yrd Mat Min Mat Distress Signals 1 | . . . 1 Communications Jammed . | . . . . Distress Signals . | . . . . Times Spotted 42 | . 24 5 13 Peak Tracking Total 7 | . 6 3 7 Tactical Retreats 1 | . 1 . . Traps | -11 -10 -10 -9 ------- Run | Yrd Mat Min Mat Traps Triggered 5 | . 5 . . Indirectly . | . . . . Trap Hack Attempts . | . . . . Triggered . | . . . . Disarmed . | . . . . Reprogrammed . | . . . . Reused . | . . . . Traps Extracted . | . . . . Installed . | . . . . Triggered . | . . . . Machines | -11 -10 -10 -9 ---------- Run | Yrd Mat Min Mat Machines Disabled 6 | . 6 . . Max in Single Turn 2 | . 2 . . Machines Repaired . | . . . . Machines Dismantled . | . . . . Machines Sabotaged . | . . . . Overloaded Fab Kills . | . . . . Hacking | -11 -10 -10 -9 --------- Run | Yrd Mat Min Mat Machines Accessed 8 | . 4 2 2 Terminals 6 | . 4 1 1 Fabricators . | . . . . Repair Stations . | . . . . Recycling Units . | . . . . Scanalyzers 1 | . . . 1 Garrison Access . | . . . . Total Hacks 19 | . 7 5 7 Successful 14 | . 6 2 6 Failed 5 | . 1 3 1 Catastrophic . | . . . . Database Lockouts . | . . . . Manual . | . . . . Terminals 16 | . 7 4 5 Fabricators . | . . . . Repair Stations . | . . . . Recycling Units . | . . . . Scanalyzers 2 | . . . 2 Garrison Access . | . . . . Terminal Hacks 12 | . 6 2 4 Record 4 | . 1 . 3 Open Door 1 | . . 1 . Alert Level 3 | . 2 . 1 Locate Traps 1 | . 1 . . Maintenance Status 1 | . 1 . . Hauler Manifests 1 | . 1 . . Zone Layout 1 | . . 1 . Fabricator Hacks . | . . . . Repair Station Hacks . | . . . . Recycling Unit Hacks . | . . . . Scanalyzer 2 | . . . 2 Insert Component 1 | . . . 1 Analyze 1 | . . . 1 Garrison Access Hacks . | . . . . Unauthorized Hacks . | . . . . Terminals . | . . . . Fabricators . | . . . . Repair Stations . | . . . . Recycling Units . | . . . . Scanalyzers . | . . . . Garrison Access . | . . . . Data Cores Recovered . | . . . . Used . | . . . . Hacking Detections 3 | . 2 . 1 Full Trace Events . | . . . . Feedback Events . | . . . . Feedback Blocked . | . . . . Robot Schematics Acquired . | . . . . Robots Built . | . . . . Authchips . | . . . . Time . | . . . . Total Robot Build Rating . | . . . . Part Schematics Acquired 1 | . . . 1 Parts Built . | . . . . Authchips . | . . . . Time . | . . . . Total Part Build Rating . | . . . . Part Studies Acquired . | . . . . Parts Repaired . | . . . . Time . | . . . . Parts Recycled . | . . . . Recycled Matter . | . . . . Retrieved Matter . | . . . . Retrieved Components . | . . . . Parts Scanalyzed 1 | . . . 1 Part Schematics Acquired 1 | . . . 1 Parts Damaged . | . . . . Bothacking | -11 -10 -10 -9 ------------ Run | Yrd Mat Min Mat Used RIF Installer . | . . . . Robots Hacked . | . . . . Non-combat . | . . . . Combat . | . . . . Robot Hacks Applied . | . . . . Relay Couplers Released . | . . . . Fabnet Peak Effective % . | . . . . Robots Rewired . | . . . . Allies Hacked . | . . . . Hacks Repelled . | . . . . Allies | -11 -10 -10 -9 -------- Run | Yrd Mat Min Mat Total Allies . | . . . . Largest Group . | . . . . Highest-Rated Group . | . . . . Highest-Rated Ally . | . . . . Total Orders . | . . . . Ally Attacks . | . . . . Total Damage . | . . . . Kills . | . . . . Allies Corrupted . | . . . . Allies Melted . | . . . . Intel | -11 -10 -10 -9 ------- Run | Yrd Mat Min Mat Active Infowar (turns) 680 | . 680 . . Terrain 680 | . 680 . . Robot Analysis Total . | . . . . Derelict Logs Recovered 2 | . . 2 . Drone Launches . | . . . . Drone Recoveries . | . . . . Exploration | -11 -10 -10 -9 ------------- Run | Yrd Mat Min Mat Turns Passed 2057 | 57 855 822 323 Spaces Moved 1385 | 41 585 559 200 Core 12 | 12 . . . Treads . | . . . . Legs 1373 | 29 585 559 200 Wheels . | . . . . Hover . | . . . . Flight . | . . . . Fastest Speed 50 | 50 120 120 120 Average Speed 128 | 99 120 141 122 Slowest Speed 190 | 120 190 190 190 Overloaded Moves . | . . . . Propulsion Burnouts . | . . . . Robots Hopped . | . . . . Potential Cave-ins . | . . . . Cave-ins Triggered . | . . . . Exploration Rate (%) 56 | 5 97 88 35 Regions Visited 3 Branch Regions 1 Pre-discovered Areas 2 | . . 2 . Known Exits Taken 1 | . . 1 . Unknown Exits Taken 2 | 1 1 . . Scrap Searched 2 | . . 2 . Spaces Dug . | . . . . Terrain Destroyed 219 | . 118 13 88 Melee . | . . . . Projectile . | . . . . AOE 219 | . 118 13 88 Terrain Rammed . | . . . . Walls Destroyed . | . . . . Machines Disabled . | . . . . Actions | -11 -10 -10 -9 --------- Run | Yrd Mat Min Mat Total 1545 | 55 659 583 248 Wait 13 | . . . 13 Move 1382 | 40 584 558 200 Hop . | . . . . Pick Up 28 | 8 13 6 1 Fast Attach 2 | . 1 1 . Attach 22 | 6 8 2 6 Detach 3 | . 3 . . Swap 4 | . 2 2 . Drop 10 | . 6 4 . Fire 67 | 1 38 9 19 Melee . | . . . . Ram . | . . . . Kick 14 | . 4 1 9 Crush . | . . . . Escape Stasis . | . . . . Rewire . | . . . . Trap . | . . . . Miscellaneous . | . . . . Route ------- -11/Scrapyard -10/Materials (discovered 5 exits: *Mat x3 / *Min x2) -10/Mines (discovered 4 exits: *Mat x2 / *Exi / *Sub) -9/Materials (discovered 1 exit: *Min) History --------- Turn | Location | Event 9 | -11/Scrapyard | Discovered new exit (range 15) 58 | -11/Scrapyard | Entered Materials 307 | -10/Materials | Build established: Mutant 337 | -10/Materials | Discovered new exit (range 15) 422 | -10/Materials | Discovered new exit (range 8) 540 | -10/Materials | Discovered new exit (range 12) 625 | -10/Materials | Discovered new exit (range 15) 730 | -10/Materials | Discovered new exit (range 7) 913 | -10/Materials | Entered Mines 914 | -10/Mines | Learned location of Storage (-7) 921 | -10/Mines | Met a Derelict bent on vengeance 1141 | -10/Mines | Learned Materials terminal intel 1245 | -10/Mines | Discovered new exit (range 8) 1413 | -10/Mines | Met a Derelict shopkeep closing up shop 1454 | -10/Mines | Deemed a non-threat by the Exiles lab entrance 1454 | -10/Mines | Discovered new exit (range 5) 1498 | -10/Mines | Discovered new exit (range 13) 1628 | -10/Mines | Discovered new exit (range 14) 1637 | -10/Mines | Identified exit to Materials 1647 | -10/Mines | Identified exit to Subcaves 1692 | -10/Mines | Identified exit to Exiles 1735 | -10/Mines | Entered Materials 1735 | -9/Materials | Evolved 2 slots: Propulsion x2 1736 | -9/Materials | Loaded intel: 12 terminal locations 1964 | -9/Materials | Discovered new exit (range 7) 1970 | -9/Materials | Identified exit to Mines 2045 | -9/Materials | Core integrity fell below 50% 2058 | -9/Materials | Self-destructed Last Messages --------------- G-34 Mercenary destroyed. The unstable cave ceiling collapses. Aluminum Leg destroyed. R-06 Scavenger collects Unknown Device. The unstable cave ceiling collapses. Aluminum Leg destroyed. Processing Tank disabled. Aluminum Leg destroyed. Rocket Launcher destroyed. K-01 Serf collects debris. The unstable cave ceiling collapses. K-01 Serf collects debris. R-06 Scavenger collects Huge Storage Unit. Critical hit (Burn: +37). K-01 Serf collects debris. R-06 Scavenger collects Huge Storage Unit. Rocket Launcher destroyed. The unstable cave ceiling collapses. R-06 Scavenger collects Huge Storage Unit. Connecting with Terminal... Map ----- +----------------------------------------------------+ | ?????????????????????????????????????????????????? | | ?????????????????????????????????????????????????? | | ?????????????????????????????????????????????????? | | ?????????????????????????????????????????????????? | | ?????????????????????????????????????????????????? | | ?????????????????????????????????????????????????? | | ?????????????????????????????????????????????????? | | ?????????????????????????????????????????????????? | | ?????????????????????????????????????????????????? | | ?????????????????????????????????????????????????? | | ?????????????????????????????????????????????????? | | ?????????????????????????????????????????????????? | | ?????????????????????????????????????????????????? | | ?????????????????????????????????????????????????? | | ?????????????????????????????????????????????????? | | ?????????????????????????????????????????????????? | | ?????????????????????????????????????????????????? | | ???????????????????? ????????????????????????????? | | ???????????????????? ????????????????????????????? | | ???????????????????? ????????????????????????????? | | ???????????????????? ????????????????????????????? | | ???????????????????# ????????????????????????????? | | ???????????????????# ??#####?????????????????????? | | ???????????????????# ??#"""#?????????????????????? | | ???????????????????# ###"T"####??????????????????? | | ???????????????##### ^ @ #? ???????????????? | | ?????????? # ????????????????? | | ?????????? r"""l T + ???"?????????????? | | ?????????? "" #?? ??????????? | | ???????????######### """ # [ ! #????????? | | ??#?#####+########?# """ #????????????? | | ??# # # "" o ##????????????? | | ??# # """ # Y ?????????? | | ?"# # """ + = r ?????????? | | ?T# # """ # *% % ?????????? | | " # # # ####??????????? | | # ! ?# ## ##?????????????? | | ######### #??????????????? | | #""|"|"" %[ + #??????????????? | | ? # "|"|" # #??????????????? | | ### # #? #??????????????? | | * #? #??????????????? | | !%= [ > #?? #??????????????? | | % = #######??????????????????? | | ####+ # ##????????????????????"T" | | ?# ######### #?? ???????????????? | | ?# ????????# #?# ???????????????? | | ?# """ # #????????# !!! #?# #??????????????? | | ?# ?"""?#%#????????# [! #?# #??????????????? | | ????""??# #????????# [! +? #??????????????? | +----------------------------------------------------+ Best States ------------- Heat Dissipation 28 Energy Generation 10 Energy Capacity 250 Matter Stores 300 Matter Capacity 400 Sight Range 16 Terrain Scan Range 14 Terrain Scan Density 10 Evasion (%) 63 Item Schematics ----------------- Terrain Scanner | -9/Materials | Scanalyzed Robot Schematics ------------------ None Fabricated ------------ Nothing Repaired ---------- Nothing Studied --------- None Alien Tech Used ----------------- None Achievements -------------- Bumper Bots Safety First Shopping List Challenges ------------ None Game ------ Seed ArmoredEfficiencyHoverbase Manual? 0 Play Time 00:25:18 Cumulative 6.2 hours Start 2026.04.20 @ 13:14:23 End 2026.04.20 @ 13:38:46 Sessions 1 Manual Loads 0 Difficulty Rogue Special Mode None Game No. 23 Rogue 23 Adventurer 0 Explorer 0 Win Type - Total 0 Types 0/0/0/0/0/0/0/0/0/0 Lore% 2 Gallery% 10 Achievement% 9 Wizard Run 0 Options --------- Layout 1 ASCII 0 Keyboard 0 Movement Mouse Keybinds 0 Fullscreen 2 Font 32/Tamsyn Map View 50x35 Zoom Use 0% Tactical HUD 0 Map Filters NONE Filters NONE Steam 1 RUN: 1d3e7199-f7d2-4232-af24-ebc627a09ef9